fUSD/lending_fUSD_20241119
["ID","MTS","AMOUNT","RATE_DAILY","PERIOD"]
[342689159,1732049464835,-500.0,0.0005589,120]
[342689160,1732049464847,-500.0,0.0005589,120]
[342689161,1732049464857,-500.0,0.0005589,120]
[342689162,1732049464867,-500.0,0.0005589,120]
[342689163,1732049464878,-500.0,0.0005589,120]
[342689164,1732049464888,-500.0,0.0005589,120]
[342689165,1732049464898,-500.0,0.0005589,120]
[342689166,1732049464908,-500.0,0.0005589,120]
[342689167,1732049464919,-500.0,0.0005589,120]
[342689168,1732049464928,-500.0,0.0005589,120]
[342689169,1732049464940,-798.31,0.0005589,120]
[342689170,1732049464951,-500.0,0.0005589,120]
[342689171,1732049464961,-500.0,0.0005589,60]
[342689172,1732049464970,-500.0,0.0005589,120]
[342689173,1732049464980,-500.0,0.0005589,120]
[342689174,1732049464989,-228.99122241,0.0005589,120]
[342689175,1732049464999,-509.92,0.0005589,120]
[342689176,1732049465008,-500.0,0.0005589,120]
[342689177,1732049465018,-500.0,0.0005589,120]
[342689178,1732049465028,-349.16630071,0.0005589,120]
[342689179,1732049465037,-500.0,0.0005589,120]
[342689180,1732049465046,-500.0,0.0005589,120]
[342689181,1732049465056,-500.0,0.0005589,120]
[342689182,1732049465066,-500.0,0.0005589,120]
[342689183,1732049465076,-500.0,0.0005589,120]
[342689184,1732049465085,-500.0,0.0005589,120]
[342689185,1732049465095,-623.52,0.0005589,120]
[342689186,1732049465105,-500.0,0.0005589,120]
[342689187,1732049465116,-500.0,0.0005589,120]
[342689188,1732049465125,-361.43367472,0.0005589,120]
[342689189,1732049465135,-500.0,0.0005589,120]
[342689190,1732049465144,-500.0,0.0005589,120]
[342689191,1732049465153,-500.0,0.0005589,120]
[342689192,1732049465166,-500.0,0.0005589,120]
[342689193,1732049465176,-500.0,0.0005589,120]
[342689194,1732049465185,-500.0,0.0005589,120]
[342689195,1732049465198,-527.04016685,0.0005589,120]
[342689196,1732049465209,-500.0,0.0005589,120]
[342689197,1732049465218,-129.95754299,0.0005589,120]
[342689198,1732049465563,-370.04245701,0.0005589,120]
[342689199,1732049465579,-500.0,0.0005589,120]
[342689200,1732049465592,-500.0,0.0005589,120]
[342689201,1732049465606,-227.13779991,0.0005589,120]
[342689202,1732049465625,-272.86220009,0.0005589,120]
[342689203,1732049465641,-685.48,0.0005589,120]
[342689204,1732049465657,-500.0,0.0005589,120]
[342689205,1732049465671,-136.10534102,0.0005589,120]
[342689206,1732049465694,-500.0,0.00054794,120]
[342689207,1732049465704,-363.89465898,0.0005589,120]
[342689208,1732049465714,-500.0,0.0005589,120]
[342689209,1732049465724,-445.36399631,0.0005589,120]
[342689210,1732049465734,-500.0,0.0005589,120]
[342689211,1732049465744,-620.84,0.0005589,120]
[342689212,1732049465754,-467.27324089,0.0005589,120]
[342689213,1732049465828,-61.0837947,0.0005589,120]
[342689214,1732049465840,-726.69296441,0.0005589,120]
[342689215,1732049465850,-500.0,0.0005589,120]
[342689216,1732049465860,-500.0,0.0005589,120]
[342689217,1732049465869,-500.0,0.0005589,120]
[342689218,1732049465879,-500.0,0.0005589,120]
[342689219,1732049465889,-105.91714406,0.0005589,3]
[342689220,1732049465901,-1038.97285594,0.0005589,3]
[342689221,1732049465911,-340.85473486,0.0005589,120]
[342689222,1732049465921,-500.0,0.0005589,120]
[342689223,1732049465931,-500.0,0.0005589,120]
[342689224,1732049466171,-500.0,0.0005589,120]
[342689225,1732049466189,-500.0,0.0005589,120]
[342689226,1732049466199,-500.0,0.0005589,120]
[342689227,1732049466209,-500.0,0.0005589,120]
[342689228,1732049466219,-1567.67,0.0005589,60]
[342689229,1732049466228,-500.0,0.0005589,120]
[342689230,1732049466240,-500.0,0.0005589,120]
[342689231,1732049466250,-500.0,0.0005589,7]
[342689232,1732049466260,-500.0,0.0005589,120]
[342689233,1732049466269,-537.91,0.0005589,120]
[342689234,1732049466278,-500.0,0.0005589,120]
[342689235,1732049466288,-500.0,0.0005589,120]
[342689236,1732049466297,-500.0,0.0005589,120]
[342689237,1732049466307,-500.0,0.0005589,120]
[342689238,1732049466316,-1068.53,0.0005589,120]
[342689239,1732049466326,-500.0,0.0005589,120]
[342689240,1732049466336,-500.0,0.0005589,120]
[342689241,1732049466346,-483.05,0.0005589,120]
[342689242,1732049466355,-500.0,0.0005589,120]
[342689243,1732049466364,-500.0,0.0005589,120]
[342689244,1732049466374,-500.0,0.0005589,120]
[342689245,1732049466385,-500.0,0.0005589,120]
[342689246,1732049466395,-500.0,0.0005589,120]
[342689247,1732049466404,-500.0,0.0005589,120]
[342689248,1732049466414,-500.0,0.0005589,30]
[342689249,1732049466423,-500.0,0.0005589,120]
[342689250,1732049466433,-500.0,0.0005589,120]
[342689251,1732049466444,-500.0,0.0005589,120]
[342689252,1732049466455,-500.0,0.0005589,120]
[342689253,1732049466464,-500.0,0.0005589,120]
[342689254,1732049466474,-500.0,0.0005589,120]
[342689255,1732049466483,-500.0,0.0005589,120]
[342689256,1732049466492,-500.0,0.0005589,120]
[342689257,1732049466501,-500.0,0.0005589,120]
[342689258,1732049466512,-500.0,0.0005589,120]
[342689259,1732049466521,-500.0,0.0005589,120]
[342689260,1732049466532,-475.62938313,0.0005589,120]
[342689261,1732049466541,-500.0,0.0005589,120]
[342689262,1732049466550,-500.0,0.0005589,120]
[342689263,1732049466560,-151.0,0.0005589,120]
[342689264,1732049466569,-500.0,0.0005589,120]
[342689265,1732049466578,-500.0,0.0005589,120]
[342689266,1732049466588,-500.0,0.0005589,120]
[342689267,1732049466597,-500.0,0.0005589,120]
[342689268,1732049466606,-500.0,0.0005589,120]
[342689269,1732049466616,-500.0,0.0005589,120]
[342689270,1732049466625,-500.0,0.0005589,120]
[342689271,1732049466634,-500.0,0.0005589,120]
[342689272,1732049466644,-345.35,0.0005589,120]
[342689273,1732049466653,-500.0,0.0005589,120]
[342689274,1732049466662,-500.0,0.0005589,120]
[342689275,1732049466672,-679.26332843,0.0005589,120]
[342689276,1732049466912,-200.00667157,0.0005589,120]
[342689277,1732049466922,-573.66925735,0.0005589,120]
[342689278,1732049466932,-500.0,0.0005589,120]
[342689279,1732049466944,-500.0,0.0005589,120]
[342689280,1732049466954,-500.0,0.0005589,120]
[342689281,1732049466967,-151.0,0.0005589,120]
[342689282,1732049466977,-500.0,0.0005589,120]
[342689283,1732049466987,-6655.99,0.0005589,120]
[342689284,1732049466996,-208.44684591,0.0005589,120]
[342689285,1732049467006,-500.0,0.0005589,120]
[342689286,1732049467016,-503.15645263,0.0005589,120]
[342689287,1732049467026,-573.25,0.0005589,120]
[342689288,1732049467035,-500.0,0.0005589,120]
[342689289,1732049467044,-1126.42,0.0005589,120]
[342689290,1732049467053,-1657.14,0.0005589,120]
[342689291,1732049467063,-151.0,0.0005589,120]
[342689292,1732049467073,-500.0,0.0005589,120]
[342689293,1732049467082,-751.86,0.0005589,120]
[342689294,1732049467091,-802.83,0.0005589,120]
[342689295,1732049467101,-500.0,0.0005589,120]
[342689296,1732049467110,-500.0,0.0005589,120]
[342689297,1732049467120,-151.0,0.0005589,120]
[342689298,1732049467129,-500.0,0.0005589,120]
[342689299,1732049467138,-607.0,0.0005589,120]
[342689300,1732049467149,-500.0,0.0005589,120]
[342689301,1732049467161,-600.95,0.0005589,120]
[342689302,1732049467171,-500.0,0.0005589,120]
[342689303,1732049467180,-500.0,0.0005589,120]
[342689304,1732049467194,-500.0,0.0005589,120]
[342689305,1732049467205,-500.0,0.0005589,120]
[342689306,1732049467215,-500.0,0.0005589,120]
[342689307,1732049467224,-644.81,0.0005589,120]
[342689308,1732049467235,-500.0,0.0005589,120]
[342689309,1732049467244,-500.0,0.0005589,120]
[342689310,1732049467253,-500.0,0.0005589,120]
[342689311,1732049467263,-500.0,0.0005589,120]
[342689312,1732049467272,-500.0,0.0005589,120]
[342689313,1732049467281,-804.38,0.0005589,120]
[342689314,1732049467291,-952.84,0.0005589,120]
[342689315,1732049467301,-500.0,0.0005589,120]
[342689316,1732049467311,-500.0,0.0005589,120]
[342689317,1732049467320,-500.0,0.0005589,120]
[342689318,1732049467329,-500.0,0.0005589,120]
[342689319,1732049467338,-500.0,0.0005589,120]
[342689320,1732049467348,-257.21765097,0.0005589,120]
[342689321,1732049467358,-500.0,0.0005589,120]
[342689322,1732049467368,-500.0,0.0005589,120]
[342689323,1732049467378,-1413.93,0.0005589,120]
[342689324,1732049467388,-500.0,0.0005589,120]
[342689325,1732049467398,-500.0,0.0005589,120]
[342689326,1732049467407,-158.75,0.0005589,2]
[342689327,1732049467417,-1853.509096,0.0005592,120]
[342689328,1732049467426,-50000.0,0.00056,46]
[342689329,1732049467435,-50000.0,0.00056,56]
[342689330,1732049467447,-50000.0,0.00056,36]
[342689331,1732049467456,-3000.0,0.00056,2]
[342689332,1732049467466,-250.0,0.00056,30]
[342689333,1732049467475,-200.0,0.00056,120]
[342689334,1732049467484,-1000.0,0.00056063,120]
[342689335,1732049467494,-1049.0,0.00056098,25]
[342689336,1732049467503,-500.0,0.00056163,120]
[342689337,1732049467512,-500.0,0.00056164,120]
[342689338,1732049467522,-573.27164535,0.00056164,120]
[342689339,1732049467531,-500.0,0.00056164,120]
[342689340,1732049467540,-558.24,0.00056164,120]
[342689341,1732049467550,-500.0,0.00056164,120]
[342689342,1732049467560,-386.04,0.00056164,120]
[342689343,1732049467569,-500.0,0.00056164,120]
[342689344,1732049467579,-500.0,0.00056164,120]
[342689345,1732049467589,-500.0,0.00056164,120]
[342689346,1732049467598,-392.74774881,0.00056164,120]
[342689347,1732049467608,-500.0,0.00056164,120]
[342689348,1732049467618,-500.0,0.00056164,120]
[342689349,1732049467627,-500.0,0.00056164,120]
[342689350,1732049467637,-500.0,0.00056164,120]
[342689351,1732049467646,-500.0,0.00056164,120]
[342689352,1732049467655,-500.0,0.00056164,120]
[342689353,1732049467665,-500.0,0.00056164,120]
[342689354,1732049467674,-500.0,0.00056164,120]
[342689355,1732049467683,-500.0,0.00056164,120]
[342689356,1732049467695,-500.0,0.00056164,120]
[342689357,1732049467705,-500.0,0.00056164,120]
[342689358,1732049467714,-500.0,0.00056164,120]
[342689359,1732049467724,-500.0,0.00056164,120]
[342689360,1732049467733,-500.0,0.00056164,120]
[342689361,1732049467743,-500.0,0.00056164,120]
[342689362,1732049467752,-500.0,0.00056164,120]
[342689363,1732049467762,-500.0,0.00056164,120]
[342689364,1732049467771,-500.0,0.00056164,120]
[342689365,1732049467780,-500.0,0.00056164,120]
[342689366,1732049467789,-663.38,0.00056164,120]
[342689367,1732049467799,-500.0,0.00056164,120]
[342689368,1732049467808,-500.0,0.00056164,120]
[342689369,1732049467817,-500.0,0.00056164,120]
[342689370,1732049467827,-567.89,0.00056164,120]
[342689371,1732049467836,-500.0,0.00056164,120]
[342689372,1732049467845,-500.0,0.00056164,120]
[342689373,1732049467855,-500.0,0.00056164,120]
[342689374,1732049467864,-500.0,0.00056164,120]
[342689375,1732049467874,-500.0,0.00056164,120]
[342689376,1732049467883,-500.0,0.00056164,120]
[342689377,1732049467892,-500.0,0.00056164,120]
[342689378,1732049467901,-267.24,0.00056164,120]
[342689379,1732049467911,-500.0,0.00056164,120]
[342689380,1732049467920,-500.0,0.00056164,120]
[342689381,1732049467929,-500.0,0.00056164,120]
[342689382,1732049467942,-500.0,0.00056164,120]
[342689383,1732049467951,-500.0,0.00056164,120]
[342689384,1732049467960,-500.0,0.00056164,120]
[342689385,1732049467969,-500.0,0.00056164,120]
[342689386,1732049467979,-342.65,0.00056164,120]
[342689387,1732049467989,-500.0,0.00056164,120]
[342689388,1732049467998,-500.0,0.00056164,120]
[342689389,1732049468007,-798.31,0.00056164,120]
[342689390,1732049468017,-500.0,0.00056164,120]
[342689391,1732049468026,-500.0,0.00056164,60]
[342689392,1732049468035,-500.0,0.00056164,120]
[342689393,1732049468043,-500.0,0.00056164,120]
[342689394,1732049468053,-509.92,0.00056164,120]
[342689395,1732049468062,-500.0,0.00056164,120]
[342689396,1732049468072,-500.0,0.00056164,120]
[342689397,1732049468081,-500.0,0.00056164,120]
[342689398,1732049468092,-500.0,0.00056164,120]
[342689399,1732049468101,-500.0,0.00056164,120]
[342689400,1732049468111,-500.0,0.00056164,120]
[342689401,1732049468120,-500.0,0.00056164,120]
[342689402,1732049468130,-623.52,0.00056164,120]
[342689403,1732049468139,-500.0,0.00056164,120]
[342689404,1732049468149,-606.48,0.00056164,120]
[342689405,1732049468160,-495.4,0.00056164,120]
[342689406,1732049468169,-182.32,0.00056164,120]
[342689407,1732049468178,-369.49,0.00056164,120]
[342689408,1732049468187,-500.0,0.00056164,120]
[342689409,1732049468200,-500.0,0.00056164,120]
[342689410,1732049468209,-500.0,0.00056164,120]
[342689411,1732049468218,-500.0,0.00056164,120]
[342689412,1732049468228,-500.0,0.00056164,120]
[342689413,1732049468240,-500.0,0.00056164,120]
[342689414,1732049468250,-685.48,0.00056164,120]
[342689415,1732049468259,-500.0,0.00056164,120]
[342689416,1732049468270,-500.0,0.00056164,120]
[342689417,1732049468279,-616.80628591,0.00056164,120]
[342689418,1732049468289,-500.0,0.00056164,120]
[342689419,1732049468299,-1255.05,0.00056164,120]
[342689420,1732049468309,-500.0,0.00056164,120]
[342689421,1732049468319,-500.0,0.00056164,120]
[342689422,1732049468329,-1144.89,0.00056164,3]
[342689423,1732049468337,-500.0,0.00056164,120]
[342689424,1732049468347,-500.0,0.00056164,120]
[342689425,1732049468356,-500.0,0.00056164,120]
[342689426,1732049468365,-429.98,0.00056164,120]
[342689427,1732049468375,-500.0,0.00056164,120]
[342689428,1732049468384,-500.0,0.00056164,120]
[342689429,1732049468396,-1567.67,0.00056164,60]
[342689430,1732049468406,-505.29886313,0.00056164,120]
[342689431,1732049468415,-500.0,0.00056164,120]
[342689432,1732049468425,-500.0,0.00056164,7]
[342689433,1732049468434,-500.0,0.00056164,120]
[342689434,1732049468446,-537.91,0.00056164,120]
[342689435,1732049468456,-500.0,0.00056164,120]
[342689436,1732049468466,-500.0,0.00056164,120]
[342689437,1732049468476,-500.0,0.00056164,120]
[342689438,1732049468486,-500.0,0.00056164,120]
[342689439,1732049468496,-1068.53,0.00056164,120]
[342689440,1732049468506,-500.0,0.00056164,120]
[342689441,1732049468516,-628.88,0.00056164,120]
[342689442,1732049468525,-500.0,0.00056164,120]
[342689443,1732049468535,-500.0,0.00056164,120]
[342689444,1732049468544,-500.0,0.00056164,120]
[342689445,1732049468553,-500.0,0.00056164,120]
[342689446,1732049468562,-500.0,0.00056164,120]
[342689447,1732049468572,-500.0,0.00056164,120]
[342689448,1732049468582,-500.0,0.00056164,30]
[342689449,1732049468592,-500.0,0.00056164,120]
[342689450,1732049468602,-500.0,0.00056164,120]
[342689451,1732049468611,-500.0,0.00056164,120]
[342689452,1732049468622,-500.0,0.00056164,120]
[342689453,1732049468631,-526.35,0.00056164,120]
[342689454,1732049468641,-500.0,0.00056164,120]
[342689455,1732049468649,-500.0,0.00056164,120]
[342689456,1732049468659,-500.0,0.00056164,120]
[342689457,1732049468668,-500.0,0.00056164,120]
[342689458,1732049468678,-500.0,0.00056164,120]
[342689459,1732049468687,-500.0,0.00056164,120]
[342689460,1732049468700,-500.0,0.00056164,120]
[342689461,1732049468710,-500.0,0.00056164,120]
[342689462,1732049468720,-500.0,0.00056164,120]
[342689463,1732049468730,-500.0,0.00056164,120]
[342689464,1732049468739,-500.0,0.00056164,120]
[342689465,1732049468749,-500.0,0.00056164,120]
[342689466,1732049468759,-500.0,0.00056164,120]
[342689467,1732049468768,-500.0,0.00056164,120]
[342689468,1732049468778,-500.0,0.00056164,120]
[342689469,1732049468787,-500.0,0.00056164,120]
[342689470,1732049468797,-500.0,0.00056164,120]
[342689471,1732049468806,-500.0,0.00056164,120]
[342689472,1732049468816,-879.27,0.00056164,120]
[342689473,1732049468825,-500.0,0.00056164,120]
[342689474,1732049468835,-500.0,0.00056164,120]
[342689475,1732049468844,-500.0,0.00056164,120]
[342689476,1732049468853,-500.0,0.00056164,120]
[342689477,1732049468863,-6655.99,0.00056164,120]
[342689478,1732049468872,-500.0,0.00056164,120]
[342689479,1732049468881,-573.25,0.00056164,120]
[342689480,1732049468890,-500.0,0.00056164,120]
[342689481,1732049468899,-1126.42,0.00056164,120]
[342689482,1732049468908,-1657.14,0.00056164,120]
[342689483,1732049468918,-500.0,0.00056164,120]
[342689484,1732049468927,-751.86,0.00056164,120]
[342689485,1732049468937,-354.16948234,0.00056164,120]
[342689486,1732049468952,-448.66051766,0.00056164,120]
[342689487,1732049468961,-215.75260428,0.00056164,120]
[342689488,1732049468973,-284.24739572,0.00056164,120]
[342689489,1732049468983,-500.0,0.00056164,120]
[342689490,1732049468992,-500.0,0.00056164,120]
[342689491,1732049469002,-500.0,0.00056164,120]
[342689492,1732049469012,-67.88288428,0.00056164,120]
[342689493,1732049469034,-533.06711572,0.00056164,120]
[342689494,1732049469043,-114.58725849,0.00056164,120]
[342689495,1732049469055,-385.41274151,0.00056164,120]
[342689496,1732049469065,-131.86732436,0.00056164,120]
[342689497,1732049469086,-174.2758072,0.00056164,120]
[342689498,1732049469114,-193.85686844,0.00056164,120]
[342689499,1732049469123,-500.0,0.00056164,120]
[342689500,1732049469133,-500.0,0.00056164,120]
[342689501,1732049469143,-500.0,0.00056164,120]
[342689502,1732049469153,-644.81,0.00056164,120]
[342689503,1732049469166,-500.0,0.00056164,120]
[342689504,1732049469176,-500.0,0.00056164,120]
[342689505,1732049469185,-500.0,0.00056164,120]
[342689506,1732049469197,-500.0,0.00056164,120]
[342689507,1732049469206,-500.0,0.00056164,120]
[342689508,1732049469216,-804.38,0.00056164,120]
[342689509,1732049469226,-952.84,0.00056164,120]
[342689510,1732049469238,-500.0,0.00056164,120]
[342689511,1732049469247,-500.0,0.00056164,120]
[342689512,1732049469257,-500.0,0.00056164,120]
[342689513,1732049469266,-500.0,0.00056164,120]
[342689514,1732049469276,-500.0,0.00056164,120]
[342689515,1732049469285,-500.0,0.00056164,120]
[342689516,1732049469294,-1413.93,0.00056164,120]
[342689517,1732049469303,-504.48113161,0.00056164,120]
[342689518,1732049469313,-500.0,0.00056164,120]
[342689519,1732049469323,-2447.0,0.000562,90]
[342689520,1732049469332,-1000.0,0.000562,30]
[342689521,1732049469341,-334.0,0.000562,30]
[342689522,1732049469351,-2835.8198,0.00056338,2]
[342689523,1732049469360,-10979.20752651,0.00056436,120]
[342689524,1732049469370,-151.0,0.00056438,120]
[342689525,1732049469499,-500.0,0.00056438,120]
[342689526,1732049469509,-500.0,0.00056438,120]
[342689527,1732049469518,-500.0,0.00056438,120]
[342689528,1732049469527,-500.0,0.00056438,120]
[342689529,1732049469538,-500.0,0.00056438,120]
[342689530,1732049469547,-500.0,0.00056438,120]
[342689531,1732049469556,-500.0,0.00056438,120]
[342689532,1732049469566,-500.0,0.00056438,120]
[342689533,1732049469577,-500.0,0.00056438,120]
[342689534,1732049469587,-500.0,0.00056438,120]
[342689535,1732049469596,-500.0,0.00056438,120]
[342689536,1732049469606,-500.0,0.00056438,120]
[342689537,1732049469615,-500.0,0.00056438,120]
[342689538,1732049469624,-500.0,0.00056438,120]
[342689539,1732049469634,-500.0,0.00056438,120]
[342689540,1732049469644,-512.7891272,0.00056438,120]
[342689541,1732049469653,-500.0,0.00056438,120]
[342689542,1732049469663,-500.0,0.00056438,120]
[342689543,1732049469672,-500.0,0.00056438,120]
[342689544,1732049469682,-500.0,0.00056438,120]
[342689545,1732049469693,-500.0,0.00056438,120]
[342689546,1732049469702,-500.0,0.00056438,120]
[342689547,1732049469712,-500.0,0.00056438,120]
[342689548,1732049469722,-663.38,0.00056438,120]
[342689549,1732049469732,-500.0,0.00056438,120]
[342689550,1732049469741,-500.0,0.00056438,120]
[342689551,1732049469750,-500.0,0.00056438,120]
[342689552,1732049469760,-500.0,0.00056438,120]
[342689553,1732049469769,-500.0,0.00056438,120]
[342689554,1732049469780,-500.0,0.00056438,120]
[342689555,1732049469789,-500.0,0.00056438,120]
[342689556,1732049469799,-500.0,0.00056438,120]
[342689557,1732049469808,-477.46691823,0.00056438,120]
[342689558,1732049470048,203.877,0.00028133,2]
[342689559,1732049470084,203.877,0.00036659,2]
[342689560,1732049505983,500.30076869,0.0004,2]
[342689561,1732049530843,151.0,0.0003,120]
[342689562,1732049538010,12499.99,0.0004,120]
[342689563,1732049545781,176.715,0.00026776,2]
[342689566,1732050200047,-155.76752852,0.00014999,2]
[342689567,1732050200069,-844.23247148,0.00015,2]
[342689568,1732050224684,-817.34711184,0.000149,2]
[342689569,1732050224707,-482.65288816,0.00015,2]
[342689570,1732050344144,-1273.11464036,0.00015,2]
[342689571,1732050344165,-500.0,0.00015,2]
[342689572,1732050344186,-500.0,0.00015,2]
[342689573,1732050344208,-198.15,0.00015342,2]
[342689574,1732050344229,-198.15,0.00021745,2]
[342689575,1732050344250,-198.15,0.00028147,2]
[342689576,1732050344271,-600.0,0.000312,120]
[342689577,1732050344290,-200.0,0.00031511,30]
[342689578,1732050344311,-198.15,0.00034549,2]
[342689579,1732050344332,-391.96690878,0.00034662,30]
[342689580,1732050344352,-250.0,0.00037,2]
[342689581,1732050344372,-300.0,0.00039,2]
[342689582,1732050344394,-198.15,0.00040952,2]
[342689583,1732050344419,-350.0,0.00041,2]
[342689584,1732050344440,-225.98,0.00041,2]
[342689585,1732050344462,-400.0,0.00043,2]
[342689586,1732050344482,-203.0968273,0.00044898,30]
[342689587,1732050439112,-150.0,0.00034632,2]
[342689588,1732050439135,-784.32589794,0.00044898,30]
[342689589,1732050440109,-262.72857308,0.00044898,30]
[342689590,1732050440132,-500.0,0.00044898,30]
[342689591,1732050440154,-300.0,0.00044999,5]
[342689592,1732050440174,-800.0,0.00045,120]
[342689593,1732050440196,-450.0,0.00045,2]
[342689594,1732050440218,-299.5,0.0004698,2]
[342689595,1732050440240,-500.0,0.00047,2]
[342689596,1732050440260,-2303.0,0.000473,5]
[342689597,1732050440281,-198.15,0.00047354,2]
[342689598,1732050440302,-180.79,0.00048436,2]
[342689599,1732050440326,-250.0,0.00048608,120]
[342689600,1732050440347,-1000.0,0.0004867,2]
[342689601,1732050440368,-2698.38741441,0.000488,120]
[342689606,1732050546372,-25676.6375796,0.00044,30]
[342689607,1732050546395,-1438.2175,0.000476,2]
[342689608,1732050546415,-380.0,0.00048799,4]
[342689609,1732050546435,-13917.9094604,0.000488,120]
[342689610,1732050560101,-985.24108558,0.000488,120]
[342689611,1732050560123,-935.547,0.000488,84]
[342689612,1732050560144,-500.0,0.000488,120]
[342689613,1732050560168,-250.0,0.00048845,2]
[342689614,1732050560190,-158.7,0.00048848,120]
[342689615,1732050560212,-174.16,0.00048928,120]
[342689616,1732050560233,-200.0,0.00048986,2]
[342689617,1732050560253,-2596.7491,0.00049,2]
[342689618,1732050560274,-550.0,0.00049,2]
[342689619,1732050560294,-179.14,0.00049,2]
[342689620,1732050560315,-157.0,0.00049012,2]
[342689621,1732050560335,-1500.0,0.00049049,120]
[342689622,1732050560357,-299.5,0.00049243,2]
[342689623,1732050560379,-623.01226365,0.00049313,120]
[342689626,1732050568123,-500.0,0.00049313,120]
[342689627,1732050568144,-150.0,0.00049313,120]
[342689628,1732050568169,-2127.98773635,0.00049313,120]
[342689629,1732050568191,-6929.2377331,0.00049313,2]
[342689630,1732050577406,1666.9406,0.00031412,120]
[342689652,1732050631661,-1267.81985802,0.00031521,120]
[342689653,1732050631670,-448.63816708,0.00031521,120]
[342689654,1732050631680,-150.0,0.00031521,2]
[342689655,1732050631689,-300.0,0.0004994,2]
[342689657,1732050631698,-719.68076002,0.0005,30]
[342689659,1732050631710,-11.31923998,0.0005,30]
[342689661,1732050631723,-436.23441234,0.0005,30]
[342689662,1732050631794,-563.76558766,0.0005,30]
[342689663,1732050631804,-1000.0,0.0005,30]
[342689664,1732050631813,-1000.0,0.0005,30]
[342689665,1732050631823,-1000.0,0.0005,30]
[342689666,1732050631833,-1000.0,0.0005,30]
[342689667,1732050631842,-1000.0,0.0005,30]
[342689668,1732050631851,-1000.0,0.0005,30]
[342689669,1732050631861,-1000.0,0.0005,30]
[342689670,1732050631870,-538.0,0.0005,33]
[342689671,1732050631879,-3514.0,0.0005,120]
[342689672,1732050631889,-500.0,0.0005,120]
[342689673,1732050631899,-250.0,0.00050069,120]
[342689674,1732050631908,-200.0,0.00050155,2]
[342689675,1732050631918,-9969.11,0.00050538,2]
[342689676,1732050631927,-2447.0,0.00051,2]
[342689677,1732050631937,-600.0,0.00051,2]
[342689678,1732050631947,-150.0,0.00051335,2]
[342689679,1732050631956,-299.5,0.00051507,2]
[342689680,1732050631969,-5634.32,0.00051765,2]
[342689681,1732050631979,-250.0,0.00051765,120]
[342689682,1732050631988,-165.21,0.00052056,2]
[342689683,1732050631998,-2751.0,0.00052059,120]
[342689684,1732050632007,-152.09,0.0005208,120]
[342689685,1732050632017,-13002.0,0.000521,19]
[342689686,1732050632026,-168.0,0.00052126,2]
[342689687,1732050632036,-157.880768,0.00052739,30]
[342689688,1732050632046,-650.0,0.00053,2]
[342689689,1732050632055,-18164.39325774,0.000533,30]
[342689690,1732050632067,-3094.40080596,0.000533,30]